bitfinex/quotes_BTCUSD_20251031
["timestamp","ask_amount","ask_price","bid_price","bid_amount"]
[1761902395785,0.58837176,110510.0,110500.0,0.09029936]
[1761902395960,0.57514176,110510.0,110500.0,0.14945936]
[1761902396376,0.58937176,110510.0,110500.0,0.11273936]
[1761902397005,0.00641,110510.0,110500.0,0.14945936]
[1761902397202,0.002,110510.0,110500.0,0.14945936]
[1761902398790,0.4450464,110510.0,110500.0,0.14945936]
[1761902399302,0.57173176,110510.0,110500.0,0.14945936]
[1761902400082,0.58596176,110510.0,110500.0,0.11273936]
[1761902400297,0.58596176,110510.0,110500.0,0.09029936]
[1761902400819,0.60019176,110510.0,110500.0,0.09029936]
[1761902401847,0.60019176,110510.0,110500.0,0.00048035]
[1761902402361,0.59919176,110510.0,110500.0,0.00048035]
[1761902402635,0.60019176,110510.0,110500.0,0.00048035]
[1761902403045,0.60219176,110510.0,110500.0,0.00048035]
[1761902407750,0.58796176,110510.0,110500.0,0.00048035]
[1761902408152,0.60219176,110510.0,110500.0,0.00048035]
[1761902409557,1.06819305,110510.0,110500.0,0.00048035]
[1761902409730,1.15801206,110510.0,110500.0,0.00048035]
[1761902409933,1.06819305,110510.0,110500.0,0.00048035]
[1761902410137,1.09539851,110510.0,110500.0,0.00048035]
[1761902410352,1.09339851,110510.0,110500.0,0.00048035]
[1761902410565,1.09139851,110510.0,110500.0,0.00048035]
[1761902410721,1.09939851,110510.0,110500.0,0.00048035]
[1761902411559,1.07219305,110510.0,110500.0,0.00048035]
[1761902415820,1.31689305,110510.0,110500.0,0.00048035]
[1761902416231,1.34409948,110510.0,110500.0,0.00048035]
[1761902417406,1.78714588,110510.0,110470.0,0.03004828]
[1761902417609,1.02566256,110480.0,110470.0,0.03019242]
[1761902418062,1.03429256,110480.0,110470.0,0.03019242]
[1761902418193,1.07047484,110480.0,110470.0,0.03019242]
[1761902418841,0.50291351,110470.0,110460.0,0.00192003]
[1761902419219,1.05303892,110470.0,110460.0,0.00192003]
[1761902419578,1.07097892,110470.0,110460.0,0.00192003]
[1761902420355,1.07297892,110470.0,110460.0,0.00192003]
[1761902420556,1.10608761,110470.0,110460.0,0.00192003]
[1761902421340,1.10808761,110470.0,110460.0,0.00192003]
[1761902421542,3.10808761,110470.0,110460.0,1e-08]
[1761902421818,3.55113401,110470.0,110460.0,1e-08]
[1761902422754,3.561134,110470.0,110460.0,1e-08]
[1761902425498,3.57800852,110470.0,110460.0,1e-08]
[1761902426001,3.61000417,110470.0,110460.0,1e-08]
[1761902426214,3.58800898,110470.0,110460.0,1e-08]
[1761902426466,3.61000464,110470.0,110460.0,1e-08]
[1761902427010,3.60800464,110470.0,110460.0,1e-08]
[1761902427213,3.61300464,110470.0,110460.0,1e-08]
[1761902427581,3.61700464,110470.0,110460.0,1e-08]
[1761902429377,3.59500898,110470.0,110460.0,1e-08]
[1761902430421,3.15196258,110470.0,110460.0,1e-08]
[1761902430617,3.14196259,110470.0,110460.0,1e-08]
[1761902430943,3.1319626,110470.0,110460.0,1e-08]
[1761902431122,3.09578032,110470.0,110460.0,1e-08]
[1761902431959,3.19882672,110470.0,110460.0,1e-08]
[1761902432106,3.55813401,110470.0,110460.0,1e-08]
[1761902433446,3.58499573,110470.0,110460.0,1e-08]
[1761902436694,3.69035572,110470.0,110460.0,1e-08]
[1761902436909,3.59499572,110470.0,110460.0,1e-08]
[1761902439361,3.58499573,110470.0,110460.0,1e-08]
[1761902439566,3.59499572,110470.0,110460.0,1e-08]
[1761902440490,3.58499573,110470.0,110460.0,1e-08]
[1761902440620,3.59499572,110470.0,110460.0,1e-08]
[1761902440827,3.61699138,110470.0,110460.0,1e-08]
[1761902441163,3.60699139,110470.0,110460.0,1e-08]
[1761902441414,3.61699138,110470.0,110460.0,1e-08]
[1761902442182,3.63119222,110470.0,110460.0,1e-08]
[1761902442557,3.63924484,110470.0,110460.0,1e-08]
[1761902443649,3.62924485,110470.0,110460.0,1e-08]
[1761902443825,3.63924484,110470.0,110460.0,1e-08]
[1761902444031,3.42390616,110470.0,110460.0,1e-08]
[1761902444217,3.56063738,110470.0,110460.0,1e-08]
[1761902444417,3.58263304,110470.0,110460.0,1e-08]
[1761902444985,0.12678862,110420.0,110410.0,0.0004]
[1761902445165,0.56996531,110420.0,110410.0,0.0004]
[1761902445391,1.29893443,110420.0,110410.0,0.0004]
[1761902446231,1.33511671,110420.0,110410.0,0.0044]
[1761902446445,1.33511671,110420.0,110410.0,0.0024]
[1761902446650,1.33511671,110420.0,110410.0,0.0004]
[1761902446901,1.33611671,110420.0,110410.0,0.0004]
[1761902447280,0.16410119,110420.0,110410.0,0.0004]
[1761902447476,0.61765059,110420.0,110410.0,0.0004]
[1761902448765,0.95765059,110420.0,110410.0,0.0004]
[1761902449828,0.91186726,110420.0,110410.0,0.0004]
[1761902450553,0.92107436,110420.0,110410.0,0.00150042]
[1761902451950,0.95725664,110420.0,110410.0,0.00150042]
[1761902455391,2.95725664,110420.0,110410.0,0.00150042]
[1761902456875,2.97422668,110420.0,110410.0,0.00150042]
[1761902457527,3.21252517,110420.0,110410.0,0.00150042]
[1761902458071,3.19555513,110420.0,110410.0,0.00150042]
[1761902458473,3.21252141,110420.0,110410.0,0.00150042]
[1761902459749,3.31894042,110420.0,110410.0,0.00150042]
[1761902459948,0.12681159,110400.0,110390.0,0.0094]
[1761902460158,0.80905843,110400.0,110390.0,0.0094]
[1761902460602,0.80905843,110400.0,110390.0,0.00984035]
[1761902461158,3.14905843,110400.0,110390.0,0.00984035]
[1761902461359,3.18524071,110400.0,110390.0,0.00984035]
[1761902461614,3.36487873,110400.0,110390.0,0.00984035]
[1761902461822,3.36487873,110400.0,110390.0,0.01084035]
[1761902462202,3.39674332,110400.0,110390.0,0.01184035]
[1761902462812,3.39674332,110400.0,110390.0,0.01084035]
[1761902463017,3.39674332,110400.0,110390.0,1e-08]
[1761902463622,3.39674332,110400.0,110380.0,0.0004]
[1761902463623,2.50300536,110390.0,110380.0,0.0004]
[1761902463880,0.12682308,110390.0,110380.0,0.02189]
[1761902464164,0.80906992,110390.0,110380.0,0.05239]
[1761902464384,0.80906992,110390.0,110380.0,0.02189]
[1761902464809,0.80906992,110390.0,110380.0,0.02289]
[1761902465258,0.80906992,110390.0,110380.0,0.02389]
[1761902465737,0.12682308,110390.0,110380.0,0.14420901]
[1761902466834,0.80906992,110390.0,110380.0,0.09221901]
[1761902467470,0.80906992,110390.0,110380.0,0.11370901]
[1761902469332,0.80906992,110390.0,110380.0,0.11392922]
[1761902470250,0.80906992,110390.0,110380.0,0.09243922]
[1761902470499,0.80906992,110390.0,110380.0,0.00262021]
[1761902476900,0.80906992,110390.0,110380.0,0.11251922]
[1761902477327,0.80906992,110390.0,110380.0,0.09243922]
[1761902478049,0.80899979,110390.0,110380.0,0.09243922]
[1761902478249,0.12675295,110390.0,110380.0,0.14105922]
[1761902480430,0.12675295,110390.0,110380.0,0.11251922]
[1761902481003,0.12675295,110390.0,110380.0,0.14105922]
[1761902481519,0.80899979,110390.0,110380.0,0.14105922]
[1761902484315,0.61125644,110390.0,110380.0,0.14105922]
[1761902484537,0.73807952,110390.0,110380.0,0.14105922]
[1761902484769,0.73807952,110390.0,110380.0,0.09243922]
[1761902485817,0.12682308,110390.0,110380.0,0.09243922]
[1761902486033,0.80906992,110390.0,110380.0,0.09243922]
[1761902491394,0.51761151,110390.0,110380.0,0.00262021]
[1761902494810,0.12684606,110370.0,110360.0,0.04293]
[1761902495016,0.12684606,110370.0,110350.0,0.13325901]
[1761902495017,0.12685755,110360.0,110350.0,0.13325901]
[1761902495223,0.51764598,110360.0,110350.0,0.12479901]
[1761902496062,0.51764598,110360.0,110350.0,0.12527993]
[1761902496264,0.51764598,110360.0,110350.0,0.09329993]
[1761902496667,0.52681987,110360.0,110350.0,0.09029993]
[1761902496781,0.52681987,110360.0,110350.0,0.09229993]
[1761902497001,0.52681987,110360.0,110350.0,0.09429993]
[1761902497200,0.12686905,110350.0,110340.0,0.0004]
[1761902497407,0.51770543,110350.0,110340.0,0.0004]
[1761902498435,0.51770543,110350.0,110340.0,0.0034]
[1761902498747,2.90849386,110350.0,110340.0,1e-08]
[1761902498939,0.46688055,110340.0,110330.0,0.0004]
[1761902499214,1.24845741,110340.0,110330.0,0.0004]
[1761902500110,1.24845741,110340.0,110330.0,0.0014]
[1761902500716,1.24845741,110340.0,110330.0,0.0024]
[1761902500937,0.46688055,110340.0,110330.0,0.02248]
[1761902501155,0.46688055,110340.0,110330.0,0.05212162]
[1761902501156,0.51766898,110340.0,110330.0,0.05212162]
[1761902501557,0.51766898,110340.0,110330.0,0.02358162]
[1761902502392,0.51766898,110340.0,110330.0,0.05212162]
[1761902502595,0.12688055,110340.0,110330.0,0.05212162]
[1761902502800,0.51766898,110340.0,110330.0,0.05212162]
[1761902503422,0.51766898,110340.0,110330.0,0.14194063]
[1761902503627,0.12688055,110340.0,110330.0,0.16006806]
[1761902503848,0.12688055,110340.0,110330.0,0.14194063]
[1761902504651,0.51766898,110340.0,110330.0,0.14194063]
[1761902504865,0.90845741,110340.0,110330.0,0.00350162]
[1761902505262,0.51766898,110340.0,110330.0,0.00350162]
[1761902507155,0.90845741,110340.0,110330.0,0.00350162]
[1761902510269,0.12688055,110340.0,110330.0,0.00350162]
[1761902510469,0.90845741,110340.0,110330.0,0.00350162]
[1761902511747,0.12690355,110320.0,110310.0,0.02637]
[1761902511952,0.51769198,110320.0,110310.0,0.02637]
[1761902512157,0.51769198,110320.0,110310.0,0.01242082]
[1761902512343,0.94466269,110320.0,110310.0,0.01242082]
[1761902512551,0.55387426,110320.0,110310.0,0.01242082]
[1761902512971,0.51769198,110320.0,110310.0,0.01242082]
[1761902513409,0.51769198,110320.0,110310.0,0.01342082]
[1761902513601,0.51769198,110320.0,110310.0,0.01742082]
[1761902514282,0.51769198,110320.0,110310.0,0.01342082]
[1761902514482,0.52069198,110320.0,110310.0,0.01242082]
[1761902514915,0.52169198,110320.0,110310.0,0.01242082]
[1761902517591,0.91248041,110320.0,110310.0,0.01242082]
[1761902517791,0.52169198,110320.0,110310.0,0.01242082]
[1761902517995,0.91248041,110320.0,110310.0,0.01242082]
[1761902518152,0.94866269,110320.0,110310.0,1e-08]
[1761902518521,1.0384817,110320.0,110310.0,1e-08]
[1761902518731,3.46830071,110320.0,110310.0,1e-08]
[1761902518933,2.68672385,110320.0,110310.0,1e-08]
[1761902519586,0.12693807,110290.0,110280.0,0.01404]
[1761902519788,0.12693807,110290.0,110280.0,0.04178]
[1761902519996,0.51834776,110290.0,110280.0,0.06191]
[1761902520373,0.51834776,110290.0,110280.0,0.03417]
[1761902520780,0.51834776,110290.0,110280.0,0.06405416]
[1761902521101,0.51834776,110290.0,110280.0,0.06605416]
[1761902521752,0.51834776,110290.0,110280.0,0.06405416]
[1761902521981,0.12693607,110300.0,110280.0,0.54328286]
[1761902522172,0.12693607,110300.0,110290.0,0.13768901]
[1761902522609,0.12693607,110300.0,110290.0,0.15582302]
[1761902523273,0.12693607,110300.0,110290.0,0.13768901]
[1761902523424,0.51834576,110300.0,110290.0,0.13768901]
[1761902523804,0.12693607,110300.0,110290.0,0.13768901]
[1761902524004,0.12793607,110300.0,110290.0,0.13768901]
[1761902524406,0.12893607,110300.0,110290.0,0.13768901]
[1761902525991,0.52034576,110300.0,110290.0,0.13768901]
[1761902526443,0.91175545,110300.0,110290.0,0.13768901]
[1761902526773,0.91175545,110300.0,110290.0,0.08981901]
[1761902527199,0.52034576,110300.0,110290.0,0.13768901]
[1761902527572,0.12893607,110300.0,110290.0,0.13768901]
[1761902529209,0.57364939,110300.0,110290.0,0.13768901]
[1761902530165,0.57364939,110300.0,110290.0,0.10994901]
[1761902530847,0.57364939,110300.0,110290.0,0.02013]
[1761902531453,0.38474052,110300.0,110290.0,0.02057095]
[1761902531863,0.51167659,110300.0,110290.0,0.02057095]
[1761902532019,0.12693607,110300.0,110290.0,0.04831095]
[1761902532222,0.57164939,110300.0,110290.0,0.04831095]
[1761902532636,0.12693607,110300.0,110290.0,0.04831095]
[1761902532795,0.57164939,110300.0,110290.0,0.04831095]
[1761902533452,0.57164939,110300.0,110290.0,0.02057095]
[1761902534175,0.57164939,110300.0,110290.0,0.04790095]
[1761902534461,0.12693607,110300.0,110290.0,0.04790095]
[1761902534671,0.12693607,110300.0,110290.0,0.13771996]
[1761902535546,0.57164939,110300.0,110290.0,0.13771996]
[1761902535750,0.57164939,110300.0,110290.0,0.11038996]
[1761902536589,0.57164939,110300.0,110290.0,0.02057095]
[1761902537445,0.57164939,110300.0,110290.0,0.00044095]
[1761902538889,0.57164939,110300.0,110290.0,0.01955095]
[1761902539621,0.57164939,110300.0,110290.0,0.00044095]
[1761902540671,2.57164939,110300.0,110290.0,0.00887204]
[1761902540885,0.12693607,110300.0,110290.0,0.00887186]
[1761902541093,0.57164939,110300.0,110290.0,0.00887186]
[1761902541741,0.57164939,110300.0,110280.0,0.00014416]
[1761902541742,0.57165139,110290.0,110280.0,0.00014416]
[1761902541874,0.57165139,110290.0,110280.0,0.01925416]
[1761902542060,0.57165139,110290.0,110280.0,0.04664416]
[1761902542975,0.57165139,110290.0,110280.0,0.02025416]
[1761902543620,0.57165139,110290.0,110280.0,0.00214416]
[1761902544029,0.57165139,110290.0,110280.0,0.02125416]
[1761902544236,0.12694958,110280.0,110270.0,0.0004]
[1761902544393,1.03341622,110280.0,110270.0,0.00054422]
[1761902544783,0.5887029,110280.0,110270.0,0.00054422]
[1761902545530,0.5897029,110280.0,110270.0,0.00054422]
[1761902545906,0.5897029,110280.0,110240.0,1e-08]
[1761902545907,0.39377092,110270.0,110240.0,1e-08]
[1761902546105,0.12701868,110220.0,110200.0,0.10844666]
[1761902546387,0.56288314,110210.0,110200.0,0.13686326]
[1761902546590,0.55697501,110210.0,110200.0,0.13686326]
[1761902547459,0.58402219,110210.0,110200.0,0.13884932]
[1761902547728,0.55697501,110210.0,110200.0,0.13884932]
[1761902547899,0.11226169,110210.0,110200.0,0.13884932]
[1761902548103,0.11426169,110210.0,110200.0,0.13884932]
[1761902548327,0.11426169,110210.0,110200.0,1.49959814]
[1761902548516,0.11426169,110210.0,110200.0,1.48144932]
[1761902548697,0.11726169,110210.0,110200.0,1.48144932]
[1761902549039,0.11426169,110210.0,110200.0,1.48144932]
[1761902549244,0.11426169,110210.0,110200.0,1.94849106]
[1761902549488,0.003,110210.0,110200.0,2.42938666]
[1761902549728,0.001,110210.0,110200.0,2.87409998]
[1761902549948,0.12701656,110230.0,110210.0,1.3426]
[1761902549949,0.12701868,110220.0,110210.0,1.3426]
[1761902550163,0.12701868,110220.0,110210.0,1.43241901]
[1761902550377,0.12701868,110220.0,110210.0,1.45329424]
[1761902550580,0.12701868,110220.0,110210.0,1.46681424]
[1761902550784,0.12701868,110220.0,110210.0,1.49420424]
[1761902550986,0.12701868,110220.0,110210.0,1.83420424]
[1761902551198,0.12701868,110220.0,110210.0,1.83720424]
[1761902551403,0.12701868,110220.0,110210.0,0.49460424]
[1761902552455,0.12701868,110220.0,110210.0,0.49760424]
[1761902552660,0.12701868,110220.0,110210.0,0.49460424]
[1761902552869,0.12701868,110220.0,110210.0,0.49660424]
[1761902555369,0.12701868,110220.0,110210.0,1.83920424]
[1761902555997,0.12701868,110220.0,110210.0,0.15660424]
[1761902557040,0.12701868,110220.0,110210.0,1.49920424]
[1761902561916,0.12701656,110230.0,110210.0,2.07094777]
[1761902562125,0.12701656,110230.0,110220.0,1.49706453]
[1761902562359,0.12701656,110230.0,110220.0,1.48046344]
[1761902563552,0.57817988,110230.0,110220.0,0.02165443]
[1761902563918,0.57172988,110230.0,110220.0,0.02165443]
[1761902564273,0.57817988,110230.0,110220.0,0.02165443]
[1761902564690,0.57817988,110230.0,110220.0,0.02265443]
[1761902566377,0.57817988,110230.0,110220.0,0.02165443]
[1761902566575,0.57917988,110230.0,110220.0,0.02165443]
[1761902567234,0.57917988,110230.0,110220.0,0.02065443]
[1761902567415,0.58017988,110230.0,110220.0,0.02065443]
[1761902567624,0.58017988,110230.0,110220.0,0.00154443]
[1761902567978,0.58662988,110230.0,110220.0,0.00154443]
[1761902569886,0.58017988,110230.0,110220.0,0.00154443]
[1761902570194,0.58864937,110230.0,110220.0,0.00154443]
[1761902570849,0.58219937,110230.0,110220.0,0.04401443]
[1761902571099,0.13546656,110230.0,110220.0,0.01880443]
[1761902571297,0.13546656,110230.0,110220.0,0.13383344]
[1761902571298,0.12901656,110230.0,110220.0,0.13383344]
[1761902571592,0.12901656,110230.0,110220.0,0.15197896]
[1761902571755,0.12901656,110230.0,110220.0,0.13383344]
[1761902572164,0.12901656,110230.0,110220.0,0.15197896]
[1761902572579,0.12901656,110230.0,110220.0,0.13383344]
[1761902573542,0.13750235,110230.0,110220.0,0.13383344]
[1761902578721,0.12701868,110220.0,110200.0,0.00054425]
[1761902578928,0.99201309,110210.0,110200.0,0.00054425]
[1761902579131,0.97122932,110210.0,110200.0,0.00054425]
[1761902579362,1.24733082,110210.0,110200.0,0.00098574]
[1761902579791,1.24733082,110210.0,110200.0,0.00198574]
[1761902580321,1.24933082,110210.0,110200.0,0.00098574]
[1761902580536,1.25233082,110210.0,110200.0,0.00098574]
[1761902580740,1.25235002,110210.0,110200.0,0.00098574]
[1761902580941,0.56771748,110210.0,110200.0,0.00098574]
[1761902581148,1.25235002,110210.0,110200.0,0.00098574]
[1761902581863,0.1664752,110210.0,110200.0,0.10806475]
[1761902582063,0.1664752,110210.0,110200.0,0.15142357]
[1761902582064,0.13203021,110210.0,110200.0,0.15142357]
[1761902582330,0.13203021,110210.0,110200.0,0.13327475]
[1761902583128,0.12903021,110210.0,110200.0,0.13327475]
[1761902583750,0.13003021,110210.0,110200.0,0.13327475]
[1761902583967,0.12803021,110210.0,110200.0,0.13327475]
[1761902584216,0.12803021,110210.0,110200.0,0.13427475]
[1761902584856,0.12703021,110210.0,110200.0,0.13427475]
[1761902585181,0.12703021,110210.0,110200.0,0.13527475]
[1761902585862,0.17111749,110210.0,110200.0,0.11006475]
[1761902586067,0.15297021,110210.0,110200.0,0.11006475]
[1761902586485,0.12703021,110210.0,110200.0,0.13527475]
[1761902586737,0.12703021,110210.0,110200.0,0.13427475]
[1761902587848,0.12703021,110210.0,110200.0,0.13327475]
[1761902588470,0.12703021,110210.0,110200.0,1.47587475]
[1761902589302,0.12803021,110210.0,110200.0,1.47587475]
[1761902589513,0.12803021,110210.0,110200.0,1.47687475]
[1761902589726,0.12703021,110210.0,110200.0,1.47687475]
[1761902590138,0.12703021,110210.0,110200.0,1.47787475]
[1761902595791,0.12703021,110210.0,110200.0,0.13527475]
[1761902597496,0.12703021,110210.0,110200.0,1.47787475]
[1761902601382,0.12701369,110240.0,110210.0,1.46963021]
[1761902601609,0.12699564,110240.0,110230.0,0.02608]
[1761902601833,0.12698412,110250.0,110240.0,1.3426]
[1761902602033,0.12698412,110250.0,110240.0,0.13102901]
[1761902602243,0.12698412,110250.0,110240.0,0.14917124]
[1761902602867,0.12698412,110250.0,110240.0,1.49177124]
[1761902603063,0.12698412,110250.0,110240.0,1.47377326]
[1761902604147,0.12798412,110250.0,110240.0,1.47377326]
[1761902604764,0.001,110250.0,110240.0,1.6007689]
[1761902605431,0.12798412,110250.0,110240.0,1.6007689]
[1761902605758,0.12798412,110250.0,110240.0,1.47377326]
[1761902606159,0.12798412,110250.0,110240.0,1.6007689]
[1761902606956,0.001,110250.0,110240.0,1.6007689]
[1761902607163,0.001,110250.0,110240.0,2.28540144]
[1761902607384,0.13608959,110260.0,110250.0,1.3426]
[1761902607599,0.13608959,110260.0,110250.0,0.14292901]
[1761902609987,0.13708959,110260.0,110250.0,0.14292901]
[1761902610211,0.13808959,110260.0,110250.0,0.14292901]
[1761902615319,0.17206687,110260.0,110250.0,0.11817901]
[1761902615541,0.04208728,110260.0,110250.0,0.08981901]
[1761902615891,0.12698412,110250.0,110240.0,0.02489425]
[1761902616106,0.12698412,110250.0,110240.0,0.08996326]
[1761902616323,0.12698412,110250.0,110240.0,0.13117326]
[1761902617123,0.12698412,110250.0,110240.0,0.13317326]
[1761902621540,0.12698412,110250.0,110240.0,0.15131549]
[1761902623059,0.12698412,110250.0,110240.0,0.13317326]
[1761902623274,0.12698412,110250.0,110240.0,0.15131549]
[1761902623980,0.12698412,110250.0,110240.0,0.13317326]
[1761902634875,0.12698412,110250.0,110240.0,0.14492326]
[1761902637742,0.12698412,110250.0,110240.0,0.09196326]
[1761902637743,0.82119666,110250.0,110240.0,0.09196326]
[1761902637945,0.13656412,110250.0,110240.0,0.00214425]
[1761902638346,0.82119666,110250.0,110240.0,0.00214425]
[1761902638550,0.82119666,110250.0,110240.0,0.00114425]
[1761902638956,0.82219666,110250.0,110240.0,0.00014425]
[1761902639790,0.82319666,110250.0,110240.0,0.00014425]
[1761902640404,0.82219666,110250.0,110240.0,0.00014425]
[1761902640634,0.12798412,110250.0,110240.0,0.13083326]
[1761902640842,0.12998412,110250.0,110240.0,0.13083326]
[1761902641243,0.12798412,110250.0,110240.0,0.13083326]
[1761902641596,0.12998412,110250.0,110240.0,0.13083326]
[1761902641800,0.12998412,110250.0,110240.0,1.47343326]
[1761902642440,0.12998412,110250.0,110240.0,1.6004289]
[1761902643295,0.12898412,110250.0,110240.0,1.6004289]
[1761902643503,0.12698412,110250.0,110240.0,1.47343326]
[1761902643928,0.12898412,110250.0,110240.0,0.13083326]
[1761902644136,0.13377412,110250.0,110240.0,0.10576326]
[1761902644345,0.13177412,110250.0,110240.0,0.10576326]
[1761902644526,0.12798412,110250.0,110240.0,0.10576326]
[1761902644754,0.12798412,110250.0,110240.0,0.13083326]
[1761902645645,0.13277412,110250.0,110240.0,0.10576326]
[1761902645786,0.12798412,110250.0,110240.0,0.10576326]
[1761902645990,0.12798412,110250.0,110240.0,0.13083326]
[1761902647537,0.58266521,110250.0,110240.0,0.00014425]
[1761902647943,0.57308521,110250.0,110240.0,0.01594425]
[1761902648236,0.12798412,110250.0,110240.0,0.04101425]
[1761902648446,0.12798412,110250.0,110240.0,0.13083326]
[1761902650251,0.13277412,110250.0,110240.0,0.10576326]
[1761902651477,0.12798412,110250.0,110240.0,0.10576326]
[1761902651676,0.12798412,110250.0,110240.0,0.13083326]
[1761902655646,0.12798412,110250.0,110240.0,1.6004289]
[1761902656069,0.12798412,110250.0,110240.0,1.47343326]
[1761902658876,0.12798412,110250.0,110240.0,1.6004289]
[1761902659498,0.12798412,110250.0,110240.0,1.99204505]
[1761902661585,0.12798412,110250.0,110240.0,1.6004289]
[1761902662485,0.12798412,110250.0,110240.0,2.04541862]
[1761902662903,0.12798412,110250.0,110240.0,1.6004289]
[1761902663117,0.12798412,110250.0,110240.0,1.47343326]
[1761902663446,0.12698412,110250.0,110240.0,1.47343326]
[1761902663825,0.0709208,110260.0,110250.0,0.05157]
[1761902663984,0.0709208,110260.0,110250.0,0.14138901]
[1761902664965,0.07999027,110260.0,110250.0,0.14138901]
[1761902666344,0.08099027,110260.0,110250.0,0.14138901]
[1761902673938,0.08466027,110260.0,110250.0,0.11811901]
[1761902674378,0.52964999,110260.0,110250.0,0.08981901]
[1761902674589,0.12698412,110250.0,110240.0,0.00014425]
[1761902674795,0.58298384,110250.0,110240.0,0.00014425]
[1761902675388,0.61024763,110250.0,110240.0,0.00014425]
[1761902675742,0.61024763,110250.0,110240.0,0.00114425]
[1761902676391,0.61024763,110250.0,110240.0,0.00214425]
[1761902676646,0.61024763,110250.0,110240.0,0.00014425]
[1761902677632,0.60657763,110250.0,110240.0,0.00014425]
[1761902677839,0.15891791,110250.0,110240.0,0.12934326]
[1761902677996,0.15524791,110250.0,110240.0,0.12934326]
[1761902678650,0.15524791,110250.0,110240.0,0.2563389]
[1761902678651,0.12798412,110250.0,110240.0,0.2563389]
[1761902679725,0.12798412,110250.0,110240.0,0.12934326]
[1761902681989,0.12798412,110250.0,110240.0,0.2563389]
[1761902682384,0.001,110250.0,110240.0,0.2563389]
[1761902682580,0.12798412,110250.0,110240.0,0.2563389]
[1761902682805,0.12798412,110250.0,110240.0,0.12934326]
[1761902688352,0.12798412,110250.0,110240.0,0.2563389]
[1761902688764,0.001,110250.0,110240.0,0.2563389]
[1761902688977,0.001,110250.0,110240.0,0.64797657]
[1761902690972,0.12798412,110250.0,110240.0,0.64797657]
[1761902693285,0.12798412,110250.0,110240.0,0.52098093]
[1761902694234,0.12798412,110250.0,110240.0,0.64797657]
[1761902694641,0.12798412,110250.0,110240.0,0.52098093]
[1761902695911,0.12798412,110250.0,110240.0,0.65954657]
[1761902696115,0.12798412,110250.0,110240.0,0.2679089]
[1761902696329,0.12798412,110250.0,110240.0,0.14091326]
[1761902697070,0.12798412,110250.0,110240.0,0.2679089]
[1761902697805,0.12798412,110250.0,110240.0,0.53255093]
[1761902698134,0.12798412,110250.0,110240.0,0.14091326]
[1761902700869,0.13165412,110250.0,110240.0,0.11764326]
[1761902701333,0.13165412,110250.0,110240.0,0.14255326]
[1761902701542,0.12798412,110250.0,110240.0,0.14255326]
[1761902704555,0.12798412,110250.0,110240.0,0.14055326]
[1761902704752,0.001,110250.0,110240.0,0.2675489]
[1761902705311,0.001,110250.0,110240.0,0.65925004]
[1761902706508,0.001,110250.0,110240.0,0.99925004]
[1761902707019,0.001,110250.0,110240.0,2.76973346]
[1761902707196,0.12844583,110270.0,110260.0,0.12697261]
[1761902707401,0.12844583,110270.0,110260.0,0.16080795]
[1761902707799,0.12844583,110270.0,110260.0,0.14266901]
[1761902708183,0.52014697,110270.0,110260.0,0.14266901]
[1761902708385,0.12844583,110270.0,110260.0,0.14266901]
[1761902709492,0.12944583,110270.0,110260.0,0.26964162]
[1761902710111,0.00248441,110270.0,110260.0,0.26964162]
[1761902710319,0.1294455,110270.0,110260.0,0.14266901]
[1761902710520,0.1294455,110270.0,110260.0,0.16080795]
[1761902710707,0.1294455,110270.0,110260.0,0.28778056]
[1761902710856,0.1294455,110270.0,110260.0,0.14266901]
[1761902711060,0.1294455,110270.0,110260.0,0.16080795]
[1761902711256,0.1294455,110270.0,110260.0,0.14266901]
[1761902713541,0.1294455,110270.0,110260.0,0.28778056]
[1761902713757,0.1294455,110270.0,110260.0,0.26964162]
[1761902715189,0.00248441,110270.0,110260.0,0.26964162]
[1761902715814,0.00248441,110270.0,110260.0,0.66134276]
[1761902717271,0.1294455,110270.0,110260.0,0.66134276]
[1761902718250,0.1294455,110270.0,110260.0,0.26964162]
[1761902719066,0.00248441,110270.0,110260.0,0.26964162]
[1761902719415,0.00248441,110270.0,110260.0,0.66134276]
[1761902720271,0.1294455,110270.0,110260.0,0.66134276]
[1761902720481,0.1294455,110270.0,110260.0,0.53437015]
[1761902720810,0.1294455,110270.0,110260.0,0.66134276]
[1761902721347,0.00248441,110270.0,110260.0,0.26964162]
[1761902722555,0.1294455,110270.0,110260.0,0.26964162]
[1761902723256,0.1294455,110270.0,110260.0,0.14266901]
[1761902723887,0.1294455,110270.0,110260.0,0.26964162]
[1761902724303,0.1294455,110270.0,110260.0,0.14266901]
[1761902724511,0.1294455,110270.0,110260.0,0.11775901]
[1761902724697,0.1294455,110270.0,110260.0,0.14081901]
[1761902726296,0.1349755,110270.0,110260.0,0.11775901]
[1761902729746,0.53220664,110270.0,110260.0,0.08981901]
[1761902730960,0.52419223,110270.0,110260.0,0.08981901]
[1761902731420,0.55145027,110270.0,110260.0,0.08981901]
[1761902733011,0.15421913,110270.0,110260.0,0.14061901]
[1761902736140,0.15421913,110270.0,110260.0,0.11755901]
[1761902736891,0.12696109,110270.0,110260.0,0.53232015]
[1761902737158,0.12696109,110270.0,110260.0,0.14061901]
[1761902737951,0.10107738,110280.0,110260.0,0.14061901]
[1761902738204,0.10107738,110280.0,110270.0,0.10583901]
[1761902738741,0.1012979,110280.0,110270.0,0.10583901]
[1761902738896,0.11036572,110280.0,110270.0,0.10583901]
[1761902739108,0.50206686,110280.0,110270.0,0.08981901]
[1761902739303,0.50306686,110280.0,110270.0,0.08981901]
[1761902741012,0.50506686,110280.0,110270.0,0.08981901]
[1761902741434,0.50306686,110280.0,110270.0,0.08981901]
[1761902741819,0.50506686,110280.0,110270.0,0.08981901]
[1761902744898,0.12696109,110270.0,110250.0,0.03463]
[1761902745130,0.12696109,110270.0,110260.0,0.08981901]
[1761902745523,0.15421779,110270.0,110260.0,0.08981901]
[1761902745948,0.54591893,110270.0,110260.0,0.08981901]
[1761902746895,0.15421779,110270.0,110260.0,0.08981901]
[1761902747301,0.15421779,110270.0,110260.0,0.11714901]
[1761902747581,0.15421779,110270.0,110260.0,0.14029901]
[1761902747711,0.15421779,110270.0,110260.0,0.53200015]
[1761902747712,0.12696109,110270.0,110260.0,0.53200015]
[1761902748212,0.12696109,110270.0,110260.0,0.14029901]
[1761902748429,0.12696109,110270.0,110260.0,0.11714901]
[1761902748625,0.12696109,110270.0,110260.0,0.14029901]
[1761902749887,0.12696109,110270.0,110260.0,0.11714901]
[1761902750827,0.12696109,110270.0,110260.0,0.14029901]
[1761902751860,0.12696109,110270.0,110260.0,0.6771117]
[1761902752066,0.12696109,110270.0,110260.0,0.65897276]
[1761902753044,0.12696109,110270.0,110260.0,0.26727162]
[1761902754815,0.12696109,110270.0,110260.0,0.14029901]
[1761902756322,0.12696109,110270.0,110260.0,0.26727162]
[1761902757358,0.12696109,110270.0,110260.0,0.11714901]
[1761902758547,0.12696109,110270.0,110260.0,0.14029901]
[1761902758745,0.12696109,110270.0,110260.0,0.11714901]
[1761902760901,0.12696109,110270.0,110260.0,0.14029901]
[1761902761447,0.51849706,110270.0,110260.0,0.14029901]